{"text_format":"3","workbook":"xlsx","n_sheets":1,"sheets":["Kar ve Zarar Tablosu"],"not_rendered":{"defined_names":2},"read":"whole","date_system":"1900"}

{"sheet":"Kar ve Zarar Tablosu","index":0,"n_rows":60,"n_cols":10,"rows_kept":60,"merged":[[9,1,9,9],[16,1,16,9],[24,1,24,9],[38,1,38,9],[43,1,43,9],[56,1,56,9]]}
[null,"Kar ve Zarar Tablosu"]
[]
[{"$nulls":3},"ÖNCEKİ DÖNEM ","BÜTÇE ","GEÇERLİ DÖNEM ",null,"GEÇERLİ DÖNEM SATIŞ YÜZDESİ","ÖNCEKİ DÖNEME GÖRE FARK YÜZDESİ ","BÜTÇEYE GÖRE FARK YÜZDESİ "]
[null,"Satış Gelirleri"]
[null,"Ürün/Hizmet 1",null,40,50,45,null,{"$f":"IFERROR(SatışGeliri[[#This Row],[Geçerli Dönem]]/SUBTOTAL(109,SatışGeliri[Geçerli Dönem]),0)","v":{"v":1,"d":"100.0%"}},{"$f":"IFERROR(SatışGeliri[[#This Row],[Geçerli Dönem]]/SatışGeliri[[#This Row],[Önceki Dönem]]-1,0)","v":{"v":0.125,"d":"12.5%"}},{"$f":"IFERROR(SatışGeliri[[#This Row],[Geçerli Dönem]]/SatışGeliri[[#This Row],[Bütçe]]-1,0)","v":{"v":-0.09999999999999998,"d":"-10.0%"}}]
[null,"Ürün/Hizmet 2",{"$nulls":5},{"$f":"IFERROR(SatışGeliri[[#This Row],[Geçerli Dönem]]/SUBTOTAL(109,SatışGeliri[Geçerli Dönem]),0)","v":0},{"$f":"IFERROR(SatışGeliri[[#This Row],[Geçerli Dönem]]/SatışGeliri[[#This Row],[Önceki Dönem]]-1,0)","v":0},{"$f":"IFERROR(SatışGeliri[[#This Row],[Geçerli Dönem]]/SatışGeliri[[#This Row],[Bütçe]]-1,0)","v":0}]
[null,"Ürün/Hizmet 3",{"$nulls":5},{"$f":"IFERROR(SatışGeliri[[#This Row],[Geçerli Dönem]]/SUBTOTAL(109,SatışGeliri[Geçerli Dönem]),0)","v":0},{"$f":"IFERROR(SatışGeliri[[#This Row],[Geçerli Dönem]]/SatışGeliri[[#This Row],[Önceki Dönem]]-1,0)","v":0},{"$f":"IFERROR(SatışGeliri[[#This Row],[Geçerli Dönem]]/SatışGeliri[[#This Row],[Bütçe]]-1,0)","v":0}]
[null,"Ürün/Hizmet 4",{"$nulls":5},{"$f":"IFERROR(SatışGeliri[[#This Row],[Geçerli Dönem]]/SUBTOTAL(109,SatışGeliri[Geçerli Dönem]),0)","v":0},{"$f":"IFERROR(SatışGeliri[[#This Row],[Geçerli Dönem]]/SatışGeliri[[#This Row],[Önceki Dönem]]-1,0)","v":0},{"$f":"IFERROR(SatışGeliri[[#This Row],[Geçerli Dönem]]/SatışGeliri[[#This Row],[Bütçe]]-1,0)","v":0}]
[null,"Toplam",null,{"$f":"SUBTOTAL(109,SatışGeliri[Önceki Dönem])","v":40},{"$f":"SUBTOTAL(109,SatışGeliri[Bütçe])","v":50},{"$f":"SUBTOTAL(109,SatışGeliri[Geçerli Dönem])","v":45},null,{"$f":"IFERROR(SatışGeliri[[#Totals],[Geçerli Dönem]]/SatışGeliri[[#Totals],[Geçerli Dönem]],0)","v":{"v":1,"d":"100.0%"}},{"$f":"IFERROR(SatışGeliri[[#Totals],[Geçerli Dönem]]/SatışGeliri[[#Totals],[Önceki Dönem]]-1,0)","v":{"v":0.125,"d":"12.5%"}},{"$f":"IFERROR(SatışGeliri[[#Totals],[Geçerli Dönem]]/SatışGeliri[[#Totals],[Bütçe]]-1,0)","v":{"v":-0.09999999999999998,"d":"-10.0%"}}]
[]
[null,"Satış Maliyeti"]
[null,"Ürün/Hizmet 1",null,null,2,3,null,{"$f":"IFERROR(SatışMaliyeti[[#This Row],[Geçerli Dönem]]/SUBTOTAL(109,SatışGeliri[Geçerli Dönem]),0)","v":{"v":0.06666666666666667,"d":"6.7%"}},{"$f":"IFERROR(SatışMaliyeti[[#This Row],[Geçerli Dönem]]/SatışMaliyeti[[#This Row],[Önceki Dönem]]-1,0)","v":0},{"$f":"IFERROR(SatışMaliyeti[[#This Row],[Geçerli Dönem]]/SatışMaliyeti[[#This Row],[Bütçe]]-1,0)","v":{"v":0.5,"d":"50.0%"}}]
[null,"Ürün/Hizmet 2",null,null,5,3,null,{"$f":"IFERROR(SatışMaliyeti[[#This Row],[Geçerli Dönem]]/SUBTOTAL(109,SatışGeliri[Geçerli Dönem]),0)","v":{"v":0.06666666666666667,"d":"6.7%"}},{"$f":"IFERROR(SatışMaliyeti[[#This Row],[Geçerli Dönem]]/SatışMaliyeti[[#This Row],[Önceki Dönem]]-1,0)","v":0},{"$f":"IFERROR(SatışMaliyeti[[#This Row],[Geçerli Dönem]]/SatışMaliyeti[[#This Row],[Bütçe]]-1,0)","v":{"v":-0.4,"d":"-40.0%"}}]
[null,"Ürün/Hizmet 3",{"$nulls":3},1,null,{"$f":"IFERROR(SatışMaliyeti[[#This Row],[Geçerli Dönem]]/SUBTOTAL(109,SatışGeliri[Geçerli Dönem]),0)","v":{"v":0.022222222222222223,"d":"2.2%"}},{"$f":"IFERROR(SatışMaliyeti[[#This Row],[Geçerli Dönem]]/SatışMaliyeti[[#This Row],[Önceki Dönem]]-1,0)","v":0},{"$f":"IFERROR(SatışMaliyeti[[#This Row],[Geçerli Dönem]]/SatışMaliyeti[[#This Row],[Bütçe]]-1,0)","v":0}]
[null,"Ürün/Hizmet 4",{"$nulls":5},{"$f":"IFERROR(SatışMaliyeti[[#This Row],[Geçerli Dönem]]/SUBTOTAL(109,SatışGeliri[Geçerli Dönem]),0)","v":0},{"$f":"IFERROR(SatışMaliyeti[[#This Row],[Geçerli Dönem]]/SatışMaliyeti[[#This Row],[Önceki Dönem]]-1,0)","v":0},{"$f":"IFERROR(SatışMaliyeti[[#This Row],[Geçerli Dönem]]/SatışMaliyeti[[#This Row],[Bütçe]]-1,0)","v":0}]
[null,"Toplam",null,{"$f":"SUBTOTAL(109,SatışMaliyeti[Önceki Dönem])","v":0},{"$f":"SUBTOTAL(109,SatışMaliyeti[Bütçe])","v":7},{"$f":"SUBTOTAL(109,SatışMaliyeti[Geçerli Dönem])","v":7},null,{"$f":"IFERROR(SatışMaliyeti[[#Totals],[Geçerli Dönem]]/SUBTOTAL(109,SatışGeliri[Geçerli Dönem]),0)","v":{"v":0.15555555555555556,"d":"15.6%"}},{"$f":"IFERROR(SatışMaliyeti[[#Totals],[Geçerli Dönem]]/SatışMaliyeti[[#Totals],[Önceki Dönem]]-1,0)","v":0},{"$f":"IFERROR(SatışMaliyeti[[#Totals],[Geçerli Dönem]]/SatışMaliyeti[[#Totals],[Bütçe]]-1,0)","v":0}]
[]
[null,"Brüt Kar",null,{"$f":"SUM(SatışGeliri[Önceki Dönem])-SUM(SatışMaliyeti[Önceki Dönem])","v":40},{"$f":"SUM(SatışGeliri[Bütçe])-SUM(SatışMaliyeti[Bütçe])","v":43},{"$f":"SUM(SatışGeliri[Geçerli Dönem])-SUM(SatışMaliyeti[Geçerli Dönem])","v":38},null,{"$f":"IFERROR(F18/SUBTOTAL(109,SatışGeliri[Geçerli Dönem]),0)","v":{"v":0.8444444444444444,"d":"84.4%"}},{"$f":"IFERROR(F18/D18-1,0)","v":{"v":-0.050000000000000044,"d":"-5.0%"}},{"$f":"IFERROR(F18/E18-1,0)","v":{"v":-0.11627906976744184,"d":"-11.6%"}}]
[]
[null,"İşletim Gideri: Satış ve Pazarlama"]
[null,"Reklam",null,null,22,19,null,{"$f":"IFERROR(SatışVePazarlama[[#This Row],[Geçerli Dönem]]/SUBTOTAL(109,SatışGeliri[Geçerli Dönem]),0)","v":{"v":0.4222222222222222,"d":"42.2%"}},{"$f":"IFERROR(SatışVePazarlama[[#This Row],[Geçerli Dönem]]/SatışVePazarlama[[#This Row],[Önceki Dönem]]-1,0)","v":0},{"$f":"IFERROR(SatışVePazarlama[[#This Row],[Geçerli Dönem]]/SatışVePazarlama[[#This Row],[Bütçe]]-1,0)","v":{"v":-0.13636363636363635,"d":"-13.6%"}}]
[null,"Doğrudan pazarlama",{"$nulls":5},{"$f":"IFERROR(SatışVePazarlama[[#This Row],[Geçerli Dönem]]/SUBTOTAL(109,SatışGeliri[Geçerli Dönem]),0)","v":0},{"$f":"IFERROR(SatışVePazarlama[[#This Row],[Geçerli Dönem]]/SatışVePazarlama[[#This Row],[Önceki Dönem]]-1,0)","v":0},{"$f":"IFERROR(SatışVePazarlama[[#This Row],[Geçerli Dönem]]/SatışVePazarlama[[#This Row],[Bütçe]]-1,0)","v":0}]
[null,"Diğer giderler (belirtin)",{"$nulls":5},{"$f":"IFERROR(SatışVePazarlama[[#This Row],[Geçerli Dönem]]/SUBTOTAL(109,SatışGeliri[Geçerli Dönem]),0)","v":0},{"$f":"IFERROR(SatışVePazarlama[[#This Row],[Geçerli Dönem]]/SatışVePazarlama[[#This Row],[Önceki Dönem]]-1,0)","v":0},{"$f":"IFERROR(SatışVePazarlama[[#This Row],[Geçerli Dönem]]/SatışVePazarlama[[#This Row],[Bütçe]]-1,0)","v":0}]
[null,"Toplam",null,{"$f":"SUBTOTAL(109,SatışVePazarlama[Önceki Dönem])","v":0},{"$f":"SUBTOTAL(109,SatışVePazarlama[Bütçe])","v":22},{"$f":"SUBTOTAL(109,SatışVePazarlama[Geçerli Dönem])","v":19},null,{"$f":"IFERROR(SatışVePazarlama[[#Totals],[Geçerli Dönem]]/SUBTOTAL(109,SatışGeliri[Geçerli Dönem]),0)","v":{"v":0.4222222222222222,"d":"42.2%"}},{"$f":"IFERROR(SatışVePazarlama[[#Totals],[Geçerli Dönem]]/SatışVePazarlama[[#Totals],[Önceki Dönem]]-1,0)","v":0},{"$f":"IFERROR(SatışVePazarlama[[#Totals],[Geçerli Dönem]]/SatışVePazarlama[[#Totals],[Bütçe]]-1,0)","v":{"v":-0.13636363636363635,"d":"-13.6%"}}]
[]
[null,"İşletim Gideri: Genel ve İdari"]
[null,"Ücretler ve maaşlar",null,null,56,51,null,{"$f":"IFERROR(GenelVeYönetimsel[[#This Row],[Geçerli Dönem]]/SUBTOTAL(109,SatışGeliri[Geçerli Dönem]),0)","v":{"v":1.1333333333333333,"d":"113.3%"}},{"$f":"IFERROR(GenelVeYönetimsel[[#This Row],[Geçerli Dönem]]/GenelVeYönetimsel[[#This Row],[Önceki Dönem]]-1,0)","v":0},{"$f":"IFERROR(GenelVeYönetimsel[[#This Row],[Geçerli Dönem]]/GenelVeYönetimsel[[#This Row],[Bütçe]]-1,0)","v":{"v":-0.0892857142857143,"d":"-8.9%"}}]
[null,"Dış hizmetler",{"$nulls":5},{"$f":"IFERROR(GenelVeYönetimsel[[#This Row],[Geçerli Dönem]]/SUBTOTAL(109,SatışGeliri[Geçerli Dönem]),0)","v":0},{"$f":"IFERROR(GenelVeYönetimsel[[#This Row],[Geçerli Dönem]]/GenelVeYönetimsel[[#This Row],[Önceki Dönem]]-1,0)","v":0},{"$f":"IFERROR(GenelVeYönetimsel[[#This Row],[Geçerli Dönem]]/GenelVeYönetimsel[[#This Row],[Bütçe]]-1,0)","v":0}]
[null,"Sarf malzemeleri",{"$nulls":5},{"$f":"IFERROR(GenelVeYönetimsel[[#This Row],[Geçerli Dönem]]/SUBTOTAL(109,SatışGeliri[Geçerli Dönem]),0)","v":0},{"$f":"IFERROR(GenelVeYönetimsel[[#This Row],[Geçerli Dönem]]/GenelVeYönetimsel[[#This Row],[Önceki Dönem]]-1,0)","v":0},{"$f":"IFERROR(GenelVeYönetimsel[[#This Row],[Geçerli Dönem]]/GenelVeYönetimsel[[#This Row],[Bütçe]]-1,0)","v":0}]
[null,"Yemekler ve eğlence",{"$nulls":5},{"$f":"IFERROR(GenelVeYönetimsel[[#This Row],[Geçerli Dönem]]/SUBTOTAL(109,SatışGeliri[Geçerli Dönem]),0)","v":0},{"$f":"IFERROR(GenelVeYönetimsel[[#This Row],[Geçerli Dönem]]/GenelVeYönetimsel[[#This Row],[Önceki Dönem]]-1,0)","v":0},{"$f":"IFERROR(GenelVeYönetimsel[[#This Row],[Geçerli Dönem]]/GenelVeYönetimsel[[#This Row],[Bütçe]]-1,0)","v":0}]
[null,"Kira",{"$nulls":5},{"$f":"IFERROR(GenelVeYönetimsel[[#This Row],[Geçerli Dönem]]/SUBTOTAL(109,SatışGeliri[Geçerli Dönem]),0)","v":0},{"$f":"IFERROR(GenelVeYönetimsel[[#This Row],[Geçerli Dönem]]/GenelVeYönetimsel[[#This Row],[Önceki Dönem]]-1,0)","v":0},{"$f":"IFERROR(GenelVeYönetimsel[[#This Row],[Geçerli Dönem]]/GenelVeYönetimsel[[#This Row],[Bütçe]]-1,0)","v":0}]
[null,"Telefon",{"$nulls":5},{"$f":"IFERROR(GenelVeYönetimsel[[#This Row],[Geçerli Dönem]]/SUBTOTAL(109,SatışGeliri[Geçerli Dönem]),0)","v":0},{"$f":"IFERROR(GenelVeYönetimsel[[#This Row],[Geçerli Dönem]]/GenelVeYönetimsel[[#This Row],[Önceki Dönem]]-1,0)","v":0},{"$f":"IFERROR(GenelVeYönetimsel[[#This Row],[Geçerli Dönem]]/GenelVeYönetimsel[[#This Row],[Bütçe]]-1,0)","v":0}]
[null,"Su - elektrik",{"$nulls":5},{"$f":"IFERROR(GenelVeYönetimsel[[#This Row],[Geçerli Dönem]]/SUBTOTAL(109,SatışGeliri[Geçerli Dönem]),0)","v":0},{"$f":"IFERROR(GenelVeYönetimsel[[#This Row],[Geçerli Dönem]]/GenelVeYönetimsel[[#This Row],[Önceki Dönem]]-1,0)","v":0},{"$f":"IFERROR(GenelVeYönetimsel[[#This Row],[Geçerli Dönem]]/GenelVeYönetimsel[[#This Row],[Bütçe]]-1,0)","v":0}]
[null,"Amortisman",{"$nulls":5},{"$f":"IFERROR(GenelVeYönetimsel[[#This Row],[Geçerli Dönem]]/SUBTOTAL(109,SatışGeliri[Geçerli Dönem]),0)","v":0},{"$f":"IFERROR(GenelVeYönetimsel[[#This Row],[Geçerli Dönem]]/GenelVeYönetimsel[[#This Row],[Önceki Dönem]]-1,0)","v":0},{"$f":"IFERROR(GenelVeYönetimsel[[#This Row],[Geçerli Dönem]]/GenelVeYönetimsel[[#This Row],[Bütçe]]-1,0)","v":0}]
[null,"Sigorta",{"$nulls":5},{"$f":"IFERROR(GenelVeYönetimsel[[#This Row],[Geçerli Dönem]]/SUBTOTAL(109,SatışGeliri[Geçerli Dönem]),0)","v":0},{"$f":"IFERROR(GenelVeYönetimsel[[#This Row],[Geçerli Dönem]]/GenelVeYönetimsel[[#This Row],[Önceki Dönem]]-1,0)","v":0},{"$f":"IFERROR(GenelVeYönetimsel[[#This Row],[Geçerli Dönem]]/GenelVeYönetimsel[[#This Row],[Bütçe]]-1,0)","v":0}]
[null,"Onarım ve bakım",{"$nulls":5},{"$f":"IFERROR(GenelVeYönetimsel[[#This Row],[Geçerli Dönem]]/SUBTOTAL(109,SatışGeliri[Geçerli Dönem]),0)","v":0},{"$f":"IFERROR(GenelVeYönetimsel[[#This Row],[Geçerli Dönem]]/GenelVeYönetimsel[[#This Row],[Önceki Dönem]]-1,0)","v":0},{"$f":"IFERROR(GenelVeYönetimsel[[#This Row],[Geçerli Dönem]]/GenelVeYönetimsel[[#This Row],[Bütçe]]-1,0)","v":0}]
[null,"Diğer giderler (belirtin)",{"$nulls":5},{"$f":"IFERROR(GenelVeYönetimsel[[#This Row],[Geçerli Dönem]]/SUBTOTAL(109,SatışGeliri[Geçerli Dönem]),0)","v":0},{"$f":"IFERROR(GenelVeYönetimsel[[#This Row],[Geçerli Dönem]]/GenelVeYönetimsel[[#This Row],[Önceki Dönem]]-1,0)","v":0},{"$f":"IFERROR(GenelVeYönetimsel[[#This Row],[Geçerli Dönem]]/GenelVeYönetimsel[[#This Row],[Bütçe]]-1,0)","v":0}]
[null,"Toplam",null,{"$f":"SUBTOTAL(109,GenelVeYönetimsel[Önceki Dönem])","v":0},{"$f":"SUBTOTAL(109,GenelVeYönetimsel[Bütçe])","v":56},{"$f":"SUBTOTAL(109,GenelVeYönetimsel[Geçerli Dönem])","v":51},null,{"$f":"IFERROR(GenelVeYönetimsel[[#Totals],[Geçerli Dönem]]/SUBTOTAL(109,SatışGeliri[Geçerli Dönem]),0)","v":{"v":1.1333333333333333,"d":"113.3%"}},{"$f":"IFERROR(GenelVeYönetimsel[[#Totals],[Geçerli Dönem]]/GenelVeYönetimsel[[#Totals],[Önceki Dönem]]-1,0)","v":0},{"$f":"IFERROR(GenelVeYönetimsel[[#Totals],[Geçerli Dönem]]/GenelVeYönetimsel[[#Totals],[Bütçe]]-1,0)","v":{"v":-0.0892857142857143,"d":"-8.9%"}}]
[]
[null,"İşletim Gideri: Diğer"]
[null,"Diğer işletim giderleri 1",null,null,10,null,null,{"$f":"IFERROR(DiğerİşletimGideriKategorisi[[#This Row],[Geçerli Dönem]]/SUBTOTAL(109,SatışGeliri[Geçerli Dönem]),0)","v":0},{"$f":"IFERROR(DiğerİşletimGideriKategorisi[[#This Row],[Geçerli Dönem]]/DiğerİşletimGideriKategorisi[[#This Row],[Önceki Dönem]]-1,0)","v":0},{"$f":"IFERROR(DiğerİşletimGideriKategorisi[[#This Row],[Geçerli Dönem]]/DiğerİşletimGideriKategorisi[[#This Row],[Bütçe]]-1,0)","v":{"v":-1,"d":"-100.0%"}}]
[null,"Diğer işletim giderleri 2",{"$nulls":5},{"$f":"IFERROR(DiğerİşletimGideriKategorisi[[#This Row],[Geçerli Dönem]]/SUBTOTAL(109,SatışGeliri[Geçerli Dönem]),0)","v":0},{"$f":"IFERROR(DiğerİşletimGideriKategorisi[[#This Row],[Geçerli Dönem]]/DiğerİşletimGideriKategorisi[[#This Row],[Önceki Dönem]]-1,0)","v":0},{"$f":"IFERROR(DiğerİşletimGideriKategorisi[[#This Row],[Geçerli Dönem]]/DiğerİşletimGideriKategorisi[[#This Row],[Bütçe]]-1,0)","v":0}]
[null,"Toplam",null,{"$f":"SUBTOTAL(109,DiğerİşletimGideriKategorisi[Önceki Dönem])","v":0},{"$f":"SUBTOTAL(109,DiğerİşletimGideriKategorisi[Bütçe])","v":10},{"$f":"SUBTOTAL(109,DiğerİşletimGideriKategorisi[Geçerli Dönem])","v":0},null,{"$f":"IFERROR(DiğerİşletimGideriKategorisi[[#Totals],[Geçerli Dönem]]/SUBTOTAL(109,SatışGeliri[Geçerli Dönem]),0)","v":0},{"$f":"IFERROR(DiğerİşletimGideriKategorisi[[#Totals],[Geçerli Dönem]]/DiğerİşletimGideriKategorisi[[#Totals],[Önceki Dönem]]-1,0)","v":0},{"$f":"IFERROR(DiğerİşletimGideriKategorisi[[#Totals],[Geçerli Dönem]]/DiğerİşletimGideriKategorisi[[#Totals],[Bütçe]]-1,0)","v":{"v":-1,"d":"-100.0%"}}]
[]
[null,"Toplam İşletim Giderleri",null,{"$f":"SUM(SatışVePazarlama[Önceki Dönem],GenelVeYönetimsel[Önceki Dönem],DiğerİşletimGideriKategorisi[Önceki Dönem])","v":0},{"$f":"SUM(SatışVePazarlama[Bütçe],GenelVeYönetimsel[Bütçe],DiğerİşletimGideriKategorisi[Bütçe])","v":88},{"$f":"SUM(SatışVePazarlama[Geçerli Dönem],GenelVeYönetimsel[Geçerli Dönem],DiğerİşletimGideriKategorisi[Geçerli Dönem])","v":70},null,{"$f":"IFERROR(F45/SUBTOTAL(109,SatışGeliri[Geçerli Dönem]),0)","v":{"v":1.5555555555555556,"d":"155.6%"}},{"$f":"IFERROR(F45/D45-1,0)","v":0},{"$f":"IFERROR(F45/E45-1,0)","v":{"v":-0.20454545454545459,"d":"-20.5%"}}]
[]
[null,"Faaliyetlerinden Kaynaklanan Gelirler",null,{"$f":"D18-D45","v":40},{"$f":"E18-E45","v":-45},{"$f":"F18-F45","v":-32},null,{"$f":"IFERROR(F47/SUBTOTAL(109,SatışGeliri[Geçerli Dönem]),0)","v":{"v":-0.7111111111111111,"d":"-71.1%"}},{"$f":"IFERROR(IF(D47=F47,0,IF(F47>D47,ABS((F47/D47)-1),IF(AND(F47<D47,D47<0),-((F47/D47)-1),(F47/D47)-1))),0)","v":{"v":-1.8,"d":"-180.0%"}},{"$f":"IFERROR(IF(E47=F47,0,IF(F47>E47,ABS((F47/E47)-1),IF(AND(F47<E47,E47<0),-((F47/E47)-1),(F47/E47)-1))),0)","v":{"v":0.28888888888888886,"d":"28.9%"}}]
[]
[null,"Diğer Gelirler",{"$nulls":5},{"$f":"IFERROR(F49/SUBTOTAL(109,SatışGeliri[Geçerli Dönem]),0)","v":0},{"$f":"IFERROR(F49/D49-1,0)","v":0},{"$f":"IFERROR(F49/E49-1,0)","v":0}]
[]
[null,"Vergiler"]
[null,"Gelir vergileri",null,null,32,30,null,{"$f":"IFERROR(Vergiler[[#This Row],[Geçerli Dönem]]/SUBTOTAL(109,SatışGeliri[Geçerli Dönem]),0)","v":{"v":0.6666666666666666,"d":"66.7%"}},{"$f":"IFERROR(Vergiler[[#This Row],[Geçerli Dönem]]/Vergiler[[#This Row],[Önceki Dönem]]-1,0)","v":0},{"$f":"IFERROR(Vergiler[[#This Row],[Geçerli Dönem]]/Vergiler[[#This Row],[Bütçe]]-1,0)","v":{"v":-0.0625,"d":"-6.3%"}}]
[null,"Bordro vergileri",{"$nulls":5},{"$f":"IFERROR(Vergiler[[#This Row],[Geçerli Dönem]]/SUBTOTAL(109,SatışGeliri[Geçerli Dönem]),0)","v":0},{"$f":"IFERROR(Vergiler[[#This Row],[Geçerli Dönem]]/Vergiler[[#This Row],[Önceki Dönem]]-1,0)","v":0},{"$f":"IFERROR(Vergiler[[#This Row],[Geçerli Dönem]]/Vergiler[[#This Row],[Bütçe]]-1,0)","v":0}]
[null,"Emlak vergisi",{"$nulls":5},{"$f":"IFERROR(Vergiler[[#This Row],[Geçerli Dönem]]/SUBTOTAL(109,SatışGeliri[Geçerli Dönem]),0)","v":0},{"$f":"IFERROR(Vergiler[[#This Row],[Geçerli Dönem]]/Vergiler[[#This Row],[Önceki Dönem]]-1,0)","v":0},{"$f":"IFERROR(Vergiler[[#This Row],[Geçerli Dönem]]/Vergiler[[#This Row],[Bütçe]]-1,0)","v":0}]
[null,"Diğer vergiler (belirtin)",{"$nulls":5},{"$f":"IFERROR(Vergiler[[#This Row],[Geçerli Dönem]]/SUBTOTAL(109,SatışGeliri[Geçerli Dönem]),0)","v":0},{"$f":"IFERROR(Vergiler[[#This Row],[Geçerli Dönem]]/Vergiler[[#This Row],[Önceki Dönem]]-1,0)","v":0},{"$f":"IFERROR(Vergiler[[#This Row],[Geçerli Dönem]]/Vergiler[[#This Row],[Bütçe]]-1,0)","v":0}]
[null,"Toplam",null,{"$f":"SUBTOTAL(109,Vergiler[Önceki Dönem])","v":0},{"$f":"SUBTOTAL(109,Vergiler[Bütçe])","v":32},{"$f":"SUBTOTAL(109,Vergiler[Geçerli Dönem])","v":30},null,{"$f":"IFERROR(Vergiler[[#Totals],[Geçerli Dönem]]/SUBTOTAL(109,SatışGeliri[Geçerli Dönem]),0)","v":{"v":0.6666666666666666,"d":"66.7%"}},{"$f":"IFERROR(Vergiler[[#Totals],[Geçerli Dönem]]/Vergiler[[#Totals],[Önceki Dönem]]-1,0)","v":0},{"$f":"IFERROR(Vergiler[[#Totals],[Geçerli Dönem]]/Vergiler[[#Totals],[Bütçe]]-1,0)","v":{"v":-0.0625,"d":"-6.3%"}}]
[]
[null,"Net Kar",null,{"$f":"D47+D49-Vergiler[[#Totals],[Önceki Dönem]]","v":40},{"$f":"E47+E49-Vergiler[[#Totals],[Önceki Dönem]]","v":-45},{"$f":"F47+F49-Vergiler[[#Totals],[Önceki Dönem]]","v":-32},null,{"$f":"IFERROR(F58/SUBTOTAL(109,#REF!),0)","v":0},{"$f":"IFERROR(IF(D58=F58,0,IF(F58>D58,ABS((F58/D58)-1),IF(AND(F58<D58,D58<0),-((F58/D58)-1),(F58/D58)-1))),0)","v":{"v":-1.8,"d":"-180.0%"}},{"$f":"IFERROR(IF(E58=F58,0,IF(F58>E58,ABS((F58/E58)-1),IF(AND(F58<E58,E58<0),-((F58/E58)-1),(F58/E58)-1))),0)","v":{"v":0.28888888888888886,"d":"28.9%"}}]
[null,"Brüt Aralık",null,{"$f":"D18/SUM(SatışGeliri[Önceki Dönem])","v":{"v":1,"d":"100.0%"}},{"$f":"E18/SUM(SatışGeliri[Bütçe])","v":{"v":0.86,"d":"86.0%"}},{"$f":"F18/SUM(SatışGeliri[Geçerli Dönem])","v":{"v":0.8444444444444444,"d":"84.4%"}}]
[null,"Satış Karlılığı",null,{"$f":"D58/SUM(SatışGeliri[Önceki Dönem])","v":{"v":1,"d":"100.0%"}},{"$f":"E58/SUM(SatışGeliri[Bütçe])","v":{"v":-0.9,"d":"-90.0%"}},{"$f":"F58/SUM(SatışGeliri[Geçerli Dönem])","v":{"v":-0.7111111111111111,"d":"-71.1%"}}]